[Event "Titled Tuesday Blitz May 4 2021"]
[White "Vukovic, Zdravko"]
[Black "Rustemov, Alexander"]
[WhiteFideId "900877"]
[BlackFideId "4119002"]
[WhiteElo "2484"]
[BlackElo "2611"]
[Result "1-0"]
[Round "05"]
[TimeControl "180+1"]
[Date "2021.05.04"]
[WhiteClock "0:01:17"]
[BlackClock "0:01:30"]

1. e4 {[%clk 0:02:59]}  e6 {[%clk 0:02:59]} 2. d4 {[%clk 0:02:59]}  d5 {[%clk 0:03:00]} 3. Nc3 {[%clk 0:02:59]}  Bb4 {[%clk 0:03:00]} 4. exd5 {[%clk 0:02:59]}  exd5 {[%clk 0:03:00]} 5. Bd3 {[%clk 0:03:00]}  Nc6 {[%clk 0:02:59]} 6. Ne2 {[%clk 0:02:59]}  Nge7 {[%clk 0:02:59]} 7. Bg5 {[%clk 0:02:59]}  f6 {[%clk 0:02:52]} 8. Bf4 {[%clk 0:02:59]}  Bf5 {[%clk 0:02:51]} 9. O-O {[%clk 0:02:59]}  Qd7 {[%clk 0:02:48]} 10. Bxf5 {[%clk 0:02:58]}  Nxf5 {[%clk 0:02:45]} 11. Qd3 {[%clk 0:02:58]}  O-O-O {[%clk 0:02:37]} 12. Nb5 {[%clk 0:02:56]}  Ba5 {[%clk 0:02:31]} 13. b4 {[%clk 0:02:56]}  Nxb4 {[%clk 0:02:24]} 14. Nxa7+ {[%clk 0:02:42]}  Kb8 {[%clk 0:02:24]} 15. Qa3 {[%clk 0:02:17]}  b6 {[%clk 0:02:12]} 16. Rab1 {[%clk 0:02:12]}  Kxa7 {[%clk 0:02:06]} 17. Rxb4 {[%clk 0:02:12]}  Ra8 {[%clk 0:01:54]} 18. Rfb1 {[%clk 0:01:41]}  Kb7 {[%clk 0:01:52]} 19. Rb5 {[%clk 0:01:39]}  Bd2 {[%clk 0:01:45]} 20. Qc5 {[%clk 0:01:25]}  Bxf4 {[%clk 0:01:35]} 21. Rxb6+ {[%clk 0:01:20]}  cxb6 {[%clk 0:01:35]} 22. Rxb6+ {[%clk 0:01:18]}  Ka7 {[%clk 0:01:30]} 23. Qa5# {[%clk 0:01:17]} 1-0


[Site "https://www.chess.com"]

[Event "Titled Tuesday Blitz May 4 2021"]
[White "Wagh Suyog"]
[Black "Jacobson, Brandon"]
[WhiteFideId "25071688"]
[BlackFideId "30901561"]
[WhiteElo "2219"]
[BlackElo "2362"]
[Result "1/2-1/2"]
[Round "05"]
[TimeControl "180+1"]
[Date "2021.05.04"]
[WhiteClock "0:00:07"]
[BlackClock "0:00:02"]

1. d4 {[%clk 0:02:59]}  d5 {[%clk 0:02:57]} 2. c4 {[%clk 0:02:59]}  e6 {[%clk 0:02:57]} 3. Nf3 {[%clk 0:02:59]}  Nf6 {[%clk 0:02:57]} 4. Nc3 {[%clk 0:02:58]}  h6 {[%clk 0:02:57]} 5. Bf4 {[%clk 0:02:53]}  dxc4 {[%clk 0:02:57]} 6. e4 {[%clk 0:02:49]}  Bb4 {[%clk 0:02:56]} 7. Bxc4 {[%clk 0:02:44]}  Nxe4 {[%clk 0:02:56]} 8. O-O {[%clk 0:02:44]}  Bxc3 {[%clk 0:02:57]} 9. bxc3 {[%clk 0:02:44]}  Nxc3 {[%clk 0:02:58]} 10. Qc2 {[%clk 0:02:38]}  Nd5 {[%clk 0:02:56]} 11. Bxd5 {[%clk 0:02:35]}  Qxd5 {[%clk 0:02:56]} 12. Bxc7 {[%clk 0:02:28]}  Nc6 {[%clk 0:02:49]} 13. Rfd1 {[%clk 0:02:24]}  b6 {[%clk 0:02:31]} 14. Ne5 {[%clk 0:02:22]}  Bb7 {[%clk 0:02:31]} 15. Nxc6 {[%clk 0:02:22]}  Bxc6 {[%clk 0:02:06]} 16. f3 {[%clk 0:02:22]}  Rc8 {[%clk 0:02:05]} 17. Be5 {[%clk 0:02:21]}  O-O {[%clk 0:02:04]} 18. Qf2 {[%clk 0:02:19]}  f6 {[%clk 0:01:46]} 19. Bf4 {[%clk 0:02:19]}  Ba4 {[%clk 0:01:30]} 20. Rdc1 {[%clk 0:02:18]}  Rfd8 {[%clk 0:01:29]} 21. Be3 {[%clk 0:02:11]}  b5 {[%clk 0:01:16]} 22. h4 {[%clk 0:02:05]}  Rc4 {[%clk 0:01:13]} 23. Qg3 {[%clk 0:02:00]}  Rdc8 {[%clk 0:01:04]} 24. Rxc4 {[%clk 0:01:47]}  Rxc4 {[%clk 0:00:58]} 25. Qb8+ {[%clk 0:01:35]}  Kh7 {[%clk 0:00:58]} 26. Qxa7 {[%clk 0:01:35]}  Rc2 {[%clk 0:00:58]} 27. Qb8 {[%clk 0:01:13]}  Rxa2 {[%clk 0:00:40]} 28. Re1 {[%clk 0:00:49]}  Qc4 {[%clk 0:00:24]} 29. Bf2 {[%clk 0:00:43]}  Qc2 {[%clk 0:00:21]} 30. Qg3 {[%clk 0:00:42]}  Bb3 {[%clk 0:00:21]} 31. h5 {[%clk 0:00:37]}  Bd5 {[%clk 0:00:20]} 32. Be3 {[%clk 0:00:29]}  b4 {[%clk 0:00:17]} 33. Rc1 {[%clk 0:00:25]}  Qf5 {[%clk 0:00:14]} 34. Rc7 {[%clk 0:00:19]}  Ra1+ {[%clk 0:00:10]} 35. Kf2 {[%clk 0:00:20]}  Ra2+ {[%clk 0:00:07]} 36. Kg1 {[%clk 0:00:18]}  Ra1+ {[%clk 0:00:05]} 37. Kf2 {[%clk 0:00:15]}  Ra2+ {[%clk 0:00:02]} 38. Kg1 {[%clk 0:00:07]} 1/2-1/2


[Site "https://www.chess.com"]

[Event "Titled Tuesday Blitz May 4 2021"]
[White "Weetik, Vjacheslav"]
[Black "Pantzar, Milton"]
[WhiteFideId "4153472"]
[BlackFideId "1721003"]
[WhiteElo "2469"]
[BlackElo "2323"]
[Result "1-0"]
[Round "05"]
[TimeControl "180+1"]
[Date "2021.05.04"]
[WhiteClock "0:00:53"]
[BlackClock "0:00:04"]

1. d4 {[%clk 0:03:00]}  d5 {[%clk 0:02:59]} 2. Bf4 {[%clk 0:03:00]}  e6 {[%clk 0:02:55]} 3. e3 {[%clk 0:03:00]}  Bd6 {[%clk 0:02:52]} 4. Bg3 {[%clk 0:03:00]}  Nf6 {[%clk 0:02:52]} 5. Nf3 {[%clk 0:03:00]}  O-O {[%clk 0:02:51]} 6. Bd3 {[%clk 0:03:00]}  b6 {[%clk 0:02:49]} 7. Qe2 {[%clk 0:02:58]}  c5 {[%clk 0:02:43]} 8. c3 {[%clk 0:02:57]}  a5 {[%clk 0:02:32]} 9. Nbd2 {[%clk 0:02:44]}  Ba6 {[%clk 0:02:30]} 10. Bxa6 {[%clk 0:02:41]}  Nxa6 {[%clk 0:02:29]} 11. Rd1 {[%clk 0:02:41]}  Be7 {[%clk 0:02:14]} 12. e4 {[%clk 0:02:37]}  cxd4 {[%clk 0:01:59]} 13. Nxd4 {[%clk 0:02:37]}  Qc8 {[%clk 0:01:53]} 14. Bh4 {[%clk 0:02:08]}  dxe4 {[%clk 0:01:05]} 15. Nxe4 {[%clk 0:02:07]}  Nxe4 {[%clk 0:01:05]} 16. Bxe7 {[%clk 0:02:06]}  Re8 {[%clk 0:01:06]} 17. Qxe4 {[%clk 0:01:52]}  Rxe7 {[%clk 0:01:06]} 18. Nf5 {[%clk 0:01:52]}  Rc7 {[%clk 0:00:30]} 19. Nd6 {[%clk 0:01:52]}  Qf8 {[%clk 0:00:24]} 20. O-O {[%clk 0:01:43]}  Nc5 {[%clk 0:00:24]} 21. Qf3 {[%clk 0:01:42]}  Rd8 {[%clk 0:00:22]} 22. Nc4 {[%clk 0:01:34]}  Rb7 {[%clk 0:00:15]} 23. Rxd8 {[%clk 0:01:31]}  Qxd8 {[%clk 0:00:15]} 24. Rd1 {[%clk 0:01:31]}  Rd7 {[%clk 0:00:15]} 25. Rxd7 {[%clk 0:01:27]}  Nxd7 {[%clk 0:00:16]} 26. h3 {[%clk 0:01:03]}  h6 {[%clk 0:00:16]} 27. Qc6 {[%clk 0:01:01]}  g6 {[%clk 0:00:07]} 28. a4 {[%clk 0:01:00]}  h5 {[%clk 0:00:07]} 29. Qd6 {[%clk 0:00:58]}  Kg7 {[%clk 0:00:04]} 30. Ne5 {[%clk 0:00:53]} 1-0


[Site "https://www.chess.com"]

[Event "Titled Tuesday Blitz May 4 2021"]
[White "WelshTiger"]
[Black "Kovacs, Klara"]
[BlackFideId "733210"]
[WhiteElo "2475"]
[BlackElo "2120"]
[Result "1-0"]
[Round "05"]
[TimeControl "180+1"]
[Date "2021.05.04"]
[WhiteClock "0:00:09"]
[BlackClock "0:00:25"]

1. d4 {[%clk 0:03:00]}  Nf6 {[%clk 0:02:56]} 2. Nf3 {[%clk 0:03:00]}  e6 {[%clk 0:02:50]} 3. Bg5 {[%clk 0:02:59]}  Be7 {[%clk 0:02:48]} 4. Nbd2 {[%clk 0:02:53]}  c5 {[%clk 0:02:35]} 5. e3 {[%clk 0:02:48]}  cxd4 {[%clk 0:02:33]} 6. exd4 {[%clk 0:02:48]}  b6 {[%clk 0:02:34]} 7. Bd3 {[%clk 0:02:45]}  Bb7 {[%clk 0:02:34]} 8. O-O {[%clk 0:02:44]}  O-O {[%clk 0:02:34]} 9. Qe2 {[%clk 0:02:44]}  d6 {[%clk 0:02:20]} 10. Rfe1 {[%clk 0:02:23]}  Nbd7 {[%clk 0:02:03]} 11. Nf1 {[%clk 0:02:22]}  a6 {[%clk 0:02:02]} 12. Ng3 {[%clk 0:02:22]}  b5 {[%clk 0:02:01]} 13. Rad1 {[%clk 0:02:19]}  Rc8 {[%clk 0:02:00]} 14. c3 {[%clk 0:02:17]}  Re8 {[%clk 0:02:00]} 15. Nd2 {[%clk 0:02:00]}  h6 {[%clk 0:01:57]} 16. Bxf6 {[%clk 0:01:58]}  Nxf6 {[%clk 0:01:57]} 17. Nde4 {[%clk 0:01:58]}  Nxe4 {[%clk 0:01:57]} 18. Nxe4 {[%clk 0:01:58]}  Qb6 {[%clk 0:01:55]} 19. Bb1 {[%clk 0:01:58]}  a5 {[%clk 0:01:49]} 20. Qd3 {[%clk 0:01:58]}  g6 {[%clk 0:01:49]} 21. Qg3 {[%clk 0:01:45]}  b4 {[%clk 0:01:39]} 22. h4 {[%clk 0:01:40]}  bxc3 {[%clk 0:01:24]} 23. bxc3 {[%clk 0:01:37]}  d5 {[%clk 0:01:15]} 24. Nd2 {[%clk 0:01:10]}  Qc7 {[%clk 0:01:15]} 25. Qh3 {[%clk 0:00:40]}  Qxc3 {[%clk 0:01:12]} 26. Re3 {[%clk 0:00:39]}  Qxd4 {[%clk 0:01:11]} 27. h5 {[%clk 0:00:38]}  Bg5 {[%clk 0:00:54]} 28. Rd3 {[%clk 0:00:36]}  Qf6 {[%clk 0:00:46]} 29. hxg6 {[%clk 0:00:36]}  fxg6 {[%clk 0:00:47]} 30. Nf3 {[%clk 0:00:34]}  Kg7 {[%clk 0:00:45]} 31. Nxg5 {[%clk 0:00:31]}  Qxg5 {[%clk 0:00:46]} 32. Rg3 {[%clk 0:00:30]}  Qf4 {[%clk 0:00:44]} 33. Rxg6+ {[%clk 0:00:30]}  Kf7 {[%clk 0:00:42]} 34. Rxh6 {[%clk 0:00:26]}  Rg8 {[%clk 0:00:39]} 35. Rh7+ {[%clk 0:00:25]}  Rg7 {[%clk 0:00:38]} 36. Rxg7+ {[%clk 0:00:25]}  Kxg7 {[%clk 0:00:38]} 37. Qh7+ {[%clk 0:00:26]}  Kf6 {[%clk 0:00:36]} 38. g3 {[%clk 0:00:08]}  Qf3 {[%clk 0:00:32]} 39. Re1 {[%clk 0:00:08]}  Ba6 {[%clk 0:00:28]} 40. Qg6+ {[%clk 0:00:08]}  Ke7 {[%clk 0:00:26]} 41. Qxe6+ {[%clk 0:00:08]}  Kd8 {[%clk 0:00:25]} 42. Qe7# {[%clk 0:00:09]} 1-0


[Site "https://www.chess.com"]

[Event "Titled Tuesday Blitz May 4 2021"]
[White "Wilson, Elvin"]
[Black "Suvorov, Luca"]
[WhiteFideId "2014874"]
[BlackFideId "12977071"]
[WhiteElo "2245"]
[BlackElo "2127"]
[Result "1-0"]
[Round "05"]
[TimeControl "180+1"]
[Date "2021.05.04"]
[WhiteClock "0:00:02"]
[BlackClock "0:00:01"]

1. c4 {[%clk 0:03:00]}  Nf6 {[%clk 0:02:57]} 2. g3 {[%clk 0:02:59]}  e6 {[%clk 0:02:58]} 3. Bg2 {[%clk 0:02:59]}  d5 {[%clk 0:02:58]} 4. Nf3 {[%clk 0:02:59]}  c5 {[%clk 0:02:58]} 5. O-O {[%clk 0:02:59]}  Nc6 {[%clk 0:02:58]} 6. b3 {[%clk 0:02:59]}  d4 {[%clk 0:02:58]} 7. e3 {[%clk 0:02:59]}  e5 {[%clk 0:02:54]} 8. exd4 {[%clk 0:02:58]}  cxd4 {[%clk 0:02:41]} 9. Re1 {[%clk 0:02:50]}  Bd6 {[%clk 0:02:34]} 10. c5 {[%clk 0:02:35]}  Bc7 {[%clk 0:02:30]} 11. b4 {[%clk 0:02:35]}  a6 {[%clk 0:02:20]} 12. d3 {[%clk 0:02:31]}  O-O {[%clk 0:02:19]} 13. a3 {[%clk 0:02:31]}  Re8 {[%clk 0:02:14]} 14. Bg5 {[%clk 0:02:24]}  h6 {[%clk 0:02:10]} 15. Bxf6 {[%clk 0:02:24]}  Qxf6 {[%clk 0:02:11]} 16. Nbd2 {[%clk 0:02:25]}  Be6 {[%clk 0:02:10]} 17. Rb1 {[%clk 0:02:10]}  Bd5 {[%clk 0:02:02]} 18. Qc2 {[%clk 0:02:04]}  g5 {[%clk 0:01:45]} 19. a4 {[%clk 0:01:41]}  a5 {[%clk 0:01:20]} 20. bxa5 {[%clk 0:01:26]}  Bxa5 {[%clk 0:01:18]} 21. Ne4 {[%clk 0:01:22]}  Qe7 {[%clk 0:00:48]} 22. Re2 {[%clk 0:01:07]}  Bxe4 {[%clk 0:00:35]} 23. Rxe4 {[%clk 0:00:53]}  f5 {[%clk 0:00:33]} 24. Re2 {[%clk 0:00:49]}  e4 {[%clk 0:00:25]} 25. dxe4 {[%clk 0:00:38]}  Rad8 {[%clk 0:00:16]} 26. exf5 {[%clk 0:00:36]}  Qxe2 {[%clk 0:00:13]} 27. Qb3+ {[%clk 0:00:35]}  Kh8 {[%clk 0:00:11]} 28. Qf7 {[%clk 0:00:32]}  Qe7 {[%clk 0:00:09]} 29. Qg6 {[%clk 0:00:32]}  Qg7 {[%clk 0:00:09]} 30. Qh5 {[%clk 0:00:30]}  d3 {[%clk 0:00:07]} 31. Rd1 {[%clk 0:00:09]}  d2 {[%clk 0:00:07]} 32. Bf1 {[%clk 0:00:08]}  Nd4 {[%clk 0:00:06]} 33. Nxd4 {[%clk 0:00:05]}  Rxd4 {[%clk 0:00:07]} 34. Qxe8+ {[%clk 0:00:02]}  Kh7 {[%clk 0:00:07]} 35. f6 {[%clk 0:00:03]}  Qxf6 {[%clk 0:00:07]} 36. Qe2 {[%clk 0:00:02]}  Qf5 {[%clk 0:00:06]} 37. Qb5 {[%clk 0:00:02]}  Bc3 {[%clk 0:00:04]} 38. Qb3 {[%clk 0:00:02]}  Ba5 {[%clk 0:00:02]} 39. Qxb7+ {[%clk 0:00:02]}  Kg8 {[%clk 0:00:01]} 40. Qb2 {[%clk 0:00:02]} 1-0


[Site "https://www.chess.com"]

[Event "Titled Tuesday Blitz May 4 2021"]
[White "Yeremyan, Alen"]
[Black "Kollars, Dmitrij"]
[WhiteFideId "13308998"]
[BlackFideId "12909572"]
[WhiteElo "2158"]
[BlackElo "2576"]
[Result "1/2-1/2"]
[Round "05"]
[TimeControl "180+1"]
[Date "2021.05.04"]
[WhiteClock "0:00:17"]
[BlackClock "0:00:14"]

1. d4 {[%clk 0:02:59]}  Nf6 {[%clk 0:02:58]} 2. Nf3 {[%clk 0:02:59]}  e6 {[%clk 0:02:59]} 3. e3 {[%clk 0:03:00]}  c5 {[%clk 0:02:59]} 4. Bd3 {[%clk 0:03:00]}  d5 {[%clk 0:02:56]} 5. O-O {[%clk 0:02:57]}  Nc6 {[%clk 0:02:55]} 6. b3 {[%clk 0:02:57]}  cxd4 {[%clk 0:02:55]} 7. exd4 {[%clk 0:02:57]}  Bd6 {[%clk 0:02:55]} 8. Bb2 {[%clk 0:02:57]}  Qc7 {[%clk 0:02:53]} 9. a3 {[%clk 0:02:55]}  O-O {[%clk 0:02:53]} 10. Qe2 {[%clk 0:02:55]}  b6 {[%clk 0:02:52]} 11. Nbd2 {[%clk 0:02:55]}  Bb7 {[%clk 0:02:49]} 12. Ne5 {[%clk 0:02:55]}  Nd7 {[%clk 0:02:40]} 13. f4 {[%clk 0:02:49]}  Rae8 {[%clk 0:02:40]} 14. Rae1 {[%clk 0:02:43]}  f5 {[%clk 0:02:40]} 15. Rc1 {[%clk 0:02:25]}  Ndxe5 {[%clk 0:02:22]} 16. dxe5 {[%clk 0:01:47]}  Bc5+ {[%clk 0:02:21]} 17. Kh1 {[%clk 0:01:47]}  a5 {[%clk 0:02:16]} 18. Nf3 {[%clk 0:01:47]}  Kh8 {[%clk 0:01:56]} 19. Ng5 {[%clk 0:01:29]}  h6 {[%clk 0:01:52]} 20. Nf3 {[%clk 0:01:18]}  Qe7 {[%clk 0:01:50]} 21. Ra1 {[%clk 0:01:12]}  Rg8 {[%clk 0:01:50]} 22. c3 {[%clk 0:01:05]}  Qf7 {[%clk 0:01:35]} 23. b4 {[%clk 0:01:05]}  Be7 {[%clk 0:01:36]} 24. Bc1 {[%clk 0:01:05]}  d4 {[%clk 0:01:26]} 25. b5 {[%clk 0:00:58]}  Nd8 {[%clk 0:01:22]} 26. Nxd4 {[%clk 0:00:58]}  g5 {[%clk 0:01:19]} 27. fxg5 {[%clk 0:00:53]}  Bxg5 {[%clk 0:01:20]} 28. Bxg5 {[%clk 0:00:50]}  Rxg5 {[%clk 0:01:20]} 29. Rf2 {[%clk 0:00:46]}  Reg8 {[%clk 0:01:20]} 30. Rg1 {[%clk 0:00:40]}  Qg6 {[%clk 0:01:12]} 31. Nf3 {[%clk 0:00:33]}  Rg4 {[%clk 0:01:12]} 32. Qe3 {[%clk 0:00:29]}  Nf7 {[%clk 0:01:04]} 33. Be2 {[%clk 0:00:24]}  Qh5 {[%clk 0:00:47]} 34. Ne1 {[%clk 0:00:16]}  Qg5 {[%clk 0:00:31]} 35. Qxg5 {[%clk 0:00:15]}  R4xg5 {[%clk 0:00:32]} 36. Bf3 {[%clk 0:00:16]}  Bc8 {[%clk 0:00:26]} 37. Nd3 {[%clk 0:00:16]}  Bd7 {[%clk 0:00:24]} 38. c4 {[%clk 0:00:16]}  Rc8 {[%clk 0:00:25]} 39. Rc1 {[%clk 0:00:17]}  Rgg8 {[%clk 0:00:18]} 40. a4 {[%clk 0:00:17]}  Ng5 {[%clk 0:00:18]} 41. c5 {[%clk 0:00:14]}  bxc5 {[%clk 0:00:19]} 42. Rxc5 {[%clk 0:00:13]}  Rgd8 {[%clk 0:00:17]} 43. Bb7 {[%clk 0:00:11]}  Rxc5 {[%clk 0:00:16]} 44. Nxc5 {[%clk 0:00:12]}  Bxb5 {[%clk 0:00:17]} 45. h4 {[%clk 0:00:09]}  Bc4 {[%clk 0:00:06]} 46. hxg5 {[%clk 0:00:09]}  hxg5 {[%clk 0:00:07]} 47. Ba6 {[%clk 0:00:09]}  Bxa6 {[%clk 0:00:06]} 48. Nxa6 {[%clk 0:00:08]}  g4 {[%clk 0:00:07]} 49. Nc5 {[%clk 0:00:08]}  g3 {[%clk 0:00:06]} 50. Rf1 {[%clk 0:00:09]}  Rd5 {[%clk 0:00:04]} 51. Nxe6 {[%clk 0:00:09]}  Rxe5 {[%clk 0:00:05]} 52. Nf4 {[%clk 0:00:09]}  Kg7 {[%clk 0:00:04]} 53. Nh5+ {[%clk 0:00:09]}  Kg6 {[%clk 0:00:03]} 54. Nxg3 {[%clk 0:00:10]}  Kg5 {[%clk 0:00:01]} 55. Kg1 {[%clk 0:00:10]}  Kg4 {[%clk 0:00:01]} 56. Nh1 {[%clk 0:00:11]}  f4 {[%clk 0:00:01]} 57. Nf2+ {[%clk 0:00:12]}  Kg5 {[%clk 0:00:02]} 58. Nd3 {[%clk 0:00:12]}  Re4 {[%clk 0:00:02]} 59. Rxf4 {[%clk 0:00:12]}  Rxf4 {[%clk 0:00:03]} 60. Nxf4 {[%clk 0:00:13]}  Kxf4 {[%clk 0:00:04]} 61. Kf2 {[%clk 0:00:14]}  Kg4 {[%clk 0:00:05]} 62. g3 {[%clk 0:00:14]}  Kg5 {[%clk 0:00:05]} 63. Kf3 {[%clk 0:00:15]}  Kf5 {[%clk 0:00:06]} 64. g4+ {[%clk 0:00:15]}  Kg5 {[%clk 0:00:07]} 65. Kg3 {[%clk 0:00:15]}  Kg6 {[%clk 0:00:07]} 66. Kf4 {[%clk 0:00:16]}  Kf6 {[%clk 0:00:07]} 67. g5+ {[%clk 0:00:16]}  Kg6 {[%clk 0:00:08]} 68. Kg4 {[%clk 0:00:16]}  Kg7 {[%clk 0:00:08]} 69. Kf5 {[%clk 0:00:17]}  Kf7 {[%clk 0:00:08]} 70. Ke5 {[%clk 0:00:12]}  Kg6 {[%clk 0:00:09]} 71. Kd5 {[%clk 0:00:13]}  Kxg5 {[%clk 0:00:10]} 72. Kc5 {[%clk 0:00:14]}  Kf6 {[%clk 0:00:11]} 73. Kb5 {[%clk 0:00:14]}  Ke7 {[%clk 0:00:11]} 74. Kxa5 {[%clk 0:00:15]}  Kd7 {[%clk 0:00:12]} 75. Kb6 {[%clk 0:00:15]}  Kc8 {[%clk 0:00:13]} 76. a5 {[%clk 0:00:15]}  Kb8 {[%clk 0:00:13]} 77. a6 {[%clk 0:00:16]}  Ka8 {[%clk 0:00:14]} 78. a7 {[%clk 0:00:17]} 1/2-1/2


[Site "https://www.chess.com"]

[Event "Titled Tuesday Blitz May 4 2021"]
[White "Zhigalko, Sergei"]
[Black "Banawa, Joel"]
[WhiteFideId "13502956"]
[BlackFideId "2024055"]
[WhiteElo "2662"]
[BlackElo "2689"]
[Result "1/2-1/2"]
[Round "05"]
[TimeControl "180+1"]
[Date "2021.05.04"]
[WhiteClock "0:00:12"]
[BlackClock "0:00:09"]

1. e4 {[%clk 0:03:00]}  e5 {[%clk 0:03:00]} 2. Nf3 {[%clk 0:03:01]}  Nc6 {[%clk 0:03:01]} 3. Bc4 {[%clk 0:03:00]}  Nf6 {[%clk 0:03:00]} 4. Ng5 {[%clk 0:03:01]}  d5 {[%clk 0:02:59]} 5. exd5 {[%clk 0:03:01]}  Nd4 {[%clk 0:03:00]} 6. c3 {[%clk 0:03:01]}  b5 {[%clk 0:03:00]} 7. Bf1 {[%clk 0:03:01]}  Nxd5 {[%clk 0:03:00]} 8. cxd4 {[%clk 0:03:02]}  Qxg5 {[%clk 0:03:00]} 9. Bxb5+ {[%clk 0:03:02]}  Kd8 {[%clk 0:03:01]} 10. O-O {[%clk 0:03:01]}  Bb7 {[%clk 0:03:01]} 11. Qf3 {[%clk 0:03:01]}  Rb8 {[%clk 0:03:02]} 12. dxe5 {[%clk 0:03:02]}  Ne3 {[%clk 0:03:02]} 13. Qh3 {[%clk 0:02:55]}  Qxg2+ {[%clk 0:03:02]} 14. Qxg2 {[%clk 0:02:55]}  Nxg2 {[%clk 0:03:03]} 15. d4 {[%clk 0:02:55]}  Be7 {[%clk 0:03:04]} 16. Be2 {[%clk 0:02:26]}  Nh4 {[%clk 0:03:04]} 17. d5 {[%clk 0:01:54]}  Ng6 {[%clk 0:02:02]} 18. f4 {[%clk 0:01:35]}  Bc5+ {[%clk 0:02:01]} 19. Kg2 {[%clk 0:01:33]}  Bxd5+ {[%clk 0:01:59]} 20. Kg3 {[%clk 0:01:33]}  Ke7 {[%clk 0:01:53]} 21. Nc3 {[%clk 0:01:30]}  Ba8 {[%clk 0:01:51]} 22. h4 {[%clk 0:01:16]}  Nf8 {[%clk 0:01:35]} 23. f5 {[%clk 0:01:10]}  Nd7 {[%clk 0:01:29]} 24. f6+ {[%clk 0:00:56]}  gxf6 {[%clk 0:01:30]} 25. exf6+ {[%clk 0:00:57]}  Kd8 {[%clk 0:01:30]} 26. Bf3 {[%clk 0:00:25]}  Rg8+ {[%clk 0:01:30]} 27. Kh3 {[%clk 0:00:25]}  Bxf3 {[%clk 0:01:26]} 28. Rxf3 {[%clk 0:00:25]}  Rg1 {[%clk 0:01:23]} 29. b3 {[%clk 0:00:18]}  Rb4 {[%clk 0:00:56]} 30. Bb2 {[%clk 0:00:04]}  Rh1+ {[%clk 0:00:56]} 31. Kg2 {[%clk 0:00:04]}  Rxa1 {[%clk 0:00:56]} 32. Bxa1 {[%clk 0:00:04]}  Rxh4 {[%clk 0:00:57]} 33. Ne2 {[%clk 0:00:03]}  Bd6 {[%clk 0:00:55]} 34. Kf1 {[%clk 0:00:02]}  Rh1+ {[%clk 0:00:54]} 35. Ng1 {[%clk 0:00:03]}  Bc5 {[%clk 0:00:48]} 36. Rg3 {[%clk 0:00:03]}  Rxg1+ {[%clk 0:00:48]} 37. Rxg1 {[%clk 0:00:04]}  Bxg1 {[%clk 0:00:49]} 38. Kxg1 {[%clk 0:00:05]}  Nc5 {[%clk 0:00:49]} 39. Bd4 {[%clk 0:00:05]}  Ne4 {[%clk 0:00:48]} 40. Bxa7 {[%clk 0:00:05]}  Nxf6 {[%clk 0:00:48]} 41. Kg2 {[%clk 0:00:05]}  Kd7 {[%clk 0:00:48]} 42. Kf3 {[%clk 0:00:05]}  Kc6 {[%clk 0:00:47]} 43. Kf4 {[%clk 0:00:05]}  Nd5+ {[%clk 0:00:45]} 44. Kg5 {[%clk 0:00:04]}  Kb5 {[%clk 0:00:41]} 45. Kh6 {[%clk 0:00:03]}  c5 {[%clk 0:00:33]} 46. Kxh7 {[%clk 0:00:03]}  f5 {[%clk 0:00:33]} 47. Bb8 {[%clk 0:00:02]}  f4 {[%clk 0:00:32]} 48. Kg6 {[%clk 0:00:02]}  f3 {[%clk 0:00:32]} 49. Bg3 {[%clk 0:00:03]}  Nf4+ {[%clk 0:00:24]} 50. Kf5 {[%clk 0:00:03]}  Nd3 {[%clk 0:00:24]} 51. Ke4 {[%clk 0:00:02]}  f2 {[%clk 0:00:25]} 52. Bxf2 {[%clk 0:00:02]}  Nxf2+ {[%clk 0:00:25]} 53. Ke3 {[%clk 0:00:02]}  Ng4+ {[%clk 0:00:25]} 54. Ke4 {[%clk 0:00:02]}  Nf6+ {[%clk 0:00:25]} 55. Ke5 {[%clk 0:00:02]}  Nd7+ {[%clk 0:00:26]} 56. Kd5 {[%clk 0:00:03]}  Nb6+ {[%clk 0:00:26]} 57. Kd6 {[%clk 0:00:03]}  Nc8+ {[%clk 0:00:25]} 58. Ke6 {[%clk 0:00:02]}  Kb4 {[%clk 0:00:23]} 59. Kd7 {[%clk 0:00:02]}  Na7 {[%clk 0:00:22]} 60. Kc7 {[%clk 0:00:01]}  Nb5+ {[%clk 0:00:19]} 61. Kb6 {[%clk 0:00:01]}  Na3 {[%clk 0:00:16]} 62. Kc6 {[%clk 0:00:02]}  Nc2 {[%clk 0:00:15]} 63. Kb6 {[%clk 0:00:02]}  Nd4 {[%clk 0:00:15]} 64. a3+ {[%clk 0:00:03]}  Kxb3 {[%clk 0:00:13]} 65. Kxc5 {[%clk 0:00:04]}  Ne6+ {[%clk 0:00:10]} 66. Kd5 {[%clk 0:00:05]}  Nf4+ {[%clk 0:00:09]} 67. Ke5 {[%clk 0:00:06]}  Ng6+ {[%clk 0:00:10]} 68. Kf5 {[%clk 0:00:06]}  Nh4+ {[%clk 0:00:09]} 69. Kf6 {[%clk 0:00:07]}  Ka4 {[%clk 0:00:09]} 70. Ke6 {[%clk 0:00:08]}  Nf3 {[%clk 0:00:09]} 71. Kf7 {[%clk 0:00:09]}  Nd2 {[%clk 0:00:09]} 72. Kf8 {[%clk 0:00:10]}  Nc4 {[%clk 0:00:10]} 73. Kf7 {[%clk 0:00:11]}  Na5 {[%clk 0:00:11]} 74. Kf8 {[%clk 0:00:12]}  Kxa3 {[%clk 0:00:09]} 1/2-1/2


[Site "https://www.chess.com"]

[Event "Titled Tuesday Blitz May 4 2021"]
[White "Zhou, Qiyu"]
[Black "Noboa Silva, Kevin"]
[WhiteFideId "505161"]
[BlackFideId "3618471"]
[WhiteElo "1925"]
[BlackElo "2161"]
[Result "1-0"]
[Round "05"]
[TimeControl "180+1"]
[Date "2021.05.04"]
[WhiteClock "0:00:09"]
[BlackClock "0:00:04"]

1. e4 {[%clk 0:03:00]}  e6 {[%clk 0:02:32]} 2. d4 {[%clk 0:03:00]}  d5 {[%clk 0:02:31]} 3. Nc3 {[%clk 0:03:01]}  Nf6 {[%clk 0:02:31]} 4. e5 {[%clk 0:03:01]}  Nfd7 {[%clk 0:02:31]} 5. f4 {[%clk 0:03:00]}  c5 {[%clk 0:02:31]} 6. Nf3 {[%clk 0:03:00]}  Nc6 {[%clk 0:02:30]} 7. Be3 {[%clk 0:03:00]}  Be7 {[%clk 0:02:29]} 8. Qd2 {[%clk 0:02:59]}  a6 {[%clk 0:02:30]} 9. dxc5 {[%clk 0:02:56]}  Nxc5 {[%clk 0:02:29]} 10. O-O-O {[%clk 0:02:55]}  b5 {[%clk 0:02:29]} 11. Nd4 {[%clk 0:02:54]}  Nxd4 {[%clk 0:02:27]} 12. Bxd4 {[%clk 0:02:55]}  b4 {[%clk 0:02:27]} 13. Ne2 {[%clk 0:02:53]}  Ne4 {[%clk 0:02:27]} 14. Qe3 {[%clk 0:02:53]}  Qa5 {[%clk 0:02:16]} 15. Kb1 {[%clk 0:02:53]}  Bd7 {[%clk 0:02:15]} 16. Nc1 {[%clk 0:02:47]}  Rb8 {[%clk 0:01:57]} 17. Nb3 {[%clk 0:02:43]}  Qa4 {[%clk 0:01:52]} 18. Bd3 {[%clk 0:02:38]}  Bc6 {[%clk 0:01:52]} 19. Bxe4 {[%clk 0:02:33]}  dxe4 {[%clk 0:01:52]} 20. Bc5 {[%clk 0:02:34]}  Bd5 {[%clk 0:01:45]} 21. Bxe7 {[%clk 0:02:33]}  Kxe7 {[%clk 0:01:45]} 22. Qc5+ {[%clk 0:02:32]}  Ke8 {[%clk 0:01:42]} 23. f5 {[%clk 0:02:09]}  Qd7 {[%clk 0:01:36]} 24. fxe6 {[%clk 0:01:55]}  fxe6 {[%clk 0:01:33]} 25. Rhf1 {[%clk 0:01:51]}  Qe7 {[%clk 0:01:33]} 26. Qa5 {[%clk 0:01:40]}  Rf8 {[%clk 0:01:29]} 27. Qxa6 {[%clk 0:01:30]}  Rxf1 {[%clk 0:01:17]} 28. Rxf1 {[%clk 0:01:31]}  e3 {[%clk 0:00:35]} 29. Qe2 {[%clk 0:01:21]}  Qa7 {[%clk 0:00:31]} 30. Qh5+ {[%clk 0:01:15]}  g6 {[%clk 0:00:30]} 31. Qh6 {[%clk 0:01:12]}  Qe7 {[%clk 0:00:30]} 32. Qxe3 {[%clk 0:01:10]}  Ra8 {[%clk 0:00:30]} 33. Qb6 {[%clk 0:00:42]}  Qd7 {[%clk 0:00:20]} 34. Qc5 {[%clk 0:00:33]}  Qe7 {[%clk 0:00:20]} 35. Qb5+ {[%clk 0:00:27]}  Kd8 {[%clk 0:00:19]} 36. Na5 {[%clk 0:00:18]}  Rc8 {[%clk 0:00:10]} 37. b3 {[%clk 0:00:13]}  Rc7 {[%clk 0:00:06]} 38. Nc4 {[%clk 0:00:08]}  Bxc4 {[%clk 0:00:06]} 39. bxc4 {[%clk 0:00:09]}  Rd7 {[%clk 0:00:04]} 40. Qb8# {[%clk 0:00:09]} 1-0


[Site "https://www.chess.com"]